Cogmind - Beta 13 @@@ ROGUE MODE // 2024.04.06 @ 22:05:43 Player: graour Result: Destroyed by 7R-MNS with Wave Gun Performance ------------- Evolutions (3) 1500 Regions Visited (4) 800 Robots Destroyed (27) 135 Value Destroyed (1064) 1064 Prototype IDs (2) 40 Alien Tech Used (0) 0 Bonus (-934) -934 TOTAL SCORE: 2605 Bonus ------- High Alert Combat Kills 11 Friendly Fire -945 Cogmind --------- Core Integrity 0/700 Matter 214/300 Energy 168/175 System Corruption 0% Temperature Cool (18) Movement Flying (1240) Ox15 Location -7/Factory Parts ------- > --- POWER (2) -------- Light Ion Engine Micro Nuclear Core > --- PROPULSION (4) --- Xenon Bombardment Thruster > --- UTILITY (5) ------ Small Storage Unit Huge Storage Unit Targeting Computer Core Analyzer Core Analyzer > --- WEAPON (2) ------- (None) > --- INVENTORY (25) --- (None) Peak State ------------ > --- POWER ------------ Reinforced Deuterium Engine Light Angular Momentum Engine > --- PROPULSION ------- Aluminum Leg Improved Aluminum Leg Carbon-fiber Leg Titanium Leg > --- UTILITY ---------- Small Storage Unit Signal Interpreter Targeting Computer Core Analyzer Core Analyzer > --- WEAPON ----------- Heavy Assault Cannon > --- INVENTORY -------- Light Ion Engine Aluminum Leg Aluminum Leg Huge Storage Unit Improved EM Shotgun Autogun Autogun Mining Laser [Rating: 36] Favorites ----------- Power Light Angular Momentum Engine Engine Light Angular Momentum Engine Power Core Light Nuclear Core Propulsion Aluminum Leg Leg Aluminum Leg Flight Unit Xenon Bombardment Thruster Utility Small Storage Unit Device Heat Sink Storage Small Storage Unit Processor Core Analyzer Weapon Autogun Energy Gun Shock Rifle Energy Cannon Cooled Particle Cannon Ballistic Gun Autogun Ballistic Cannon Heavy Assault Cannon Special Weapon Mining Laser Build | -11 -10 -9 -8 -7 ------- Run | Yrd Mat Mat Mat Fac Slots Evolved 6 | . . 2 2 2 Power 1 | . . . 1 . Propulsion 2 | . . 2 . . Utility 3 | . . . 1 2 Weapon . | . . . . . Parts Attached 58 | 7 4 15 14 18 Power 12 | 1 1 4 3 3 Engine 9 | 1 1 3 2 2 Core 3 | . . 1 1 1 Reactor . | . . . . . Propulsion 20 | 2 1 5 7 5 Treads . | . . . . . Leg 19 | 2 1 5 7 4 Wheel . | . . . . . Hover . | . . . . . Flight 1 | . . . . 1 Utility 8 | 1 1 2 1 3 Device 1 | . . 1 . . Storage 3 | 1 1 . . 1 Processor 4 | . . 1 1 2 Hackware . | . . . . . Protection . | . . . . . Artifact . | . . . . . Weapon 18 | 3 1 4 3 7 Energy Gun 3 | 1 . . . 2 Energy Cannon 1 | . . . . 1 Ballistic Gun 12 | 2 1 4 2 3 Ballistic Cannon 1 | . . . 1 . Launcher . | . . . . . Special Weapon 1 | . . . . 1 Impact Weapon . | . . . . . Slashing Weapon . | . . . . . Piercing Weapon . | . . . . . Special Melee Weapon . | . . . . . Unidentified Prototypes 2 | . . . . 2 Parts Lost 19 | . . . 3 16 Power 2 | . . . . 2 Propulsion 9 | . . . 3 6 Utility . | . . . . . Weapon 8 | . . . . 8 Highest Loss Streak 10 | . . . 2 10 To Critical Strikes . | . . . . . Average Slot Usage (%) 86 | . 84 89 86 85 Engine 10 | . 14 9 4 14 Core 2 | . . 1 10 . Leg 32 | . 27 40 34 27 Storage 9 | . 14 11 9 7 Processor 15 | . . 4 10 26 Ballistic Gun 11 | . 28 22 16 . Ballistic Cannon 2 | . . . . 5 Naked Turns . | . . . . . Heaviest Build 94 | 10 10 19 36 94 Greatest Support 55 | 20 20 43 50 55 Greatest Overweight (x) 15 | . . . . 15 Average Overweight (x) . | . . . . . Largest Inventory Capacity 25 | 8 25 8 8 25 Average Capacity 8 | 7 8 8 8 8 Most Carried 8 | 2 4 8 8 8 Average Carried 7 | 1 2 7 7 7 Final Capacity 25 | 8 8 8 8 25 Final Carried 8 | 2 4 8 8 . Class Distribution -------------------- 75% | Scavenger-Mutant 24% | Mutant Dominant Class ---------------- Mutant | -10/Materials Mutant | -9/Materials Scavenger-Mutant | -8/Materials Scavenger-Mutant | -7/Factory Resources | -11 -10 -9 -8 -7 ----------- Run | Yrd Mat Mat Mat Fac Matter Collected 1321 | 269 17 622 305 108 Remotely . | . . . . . Salvage Created 1175 | 88 54 673 254 106 Parts 63 | 1 2 53 5 2 Haulers Intercepted . | . . . . . Recyclers Shooed 1 | . . . 1 . Parts Field Recycled . | . . . . . Retrieved Matter . | . . . . . Parts Self-Destructed . | . . . . . Prevented . | . . . . . Kills | -11 -10 -9 -8 -7 ------- Run | Yrd Mat Mat Mat Fac Combat Hostiles Destroyed 21 | . . 16 4 1 Guns 20 | . . 16 4 . AOE 1 | . . . . 1 Classes Destroyed 8 | 1 . 4 2 1 Worker 1 | . . . . 1 Recycler 4 | 1 1 . 1 1 Watcher 1 | . . 1 . . Swarmer 3 | . . 3 . . Grunt 8 | . . 6 2 . Duelist 1 | . . . 1 . Sentry 7 | . . 7 . . Hunter 2 | . . . 1 1 Best Kill Streak 5 | 1 1 5 2 3 Combat Bots Only 5 | . . 5 2 1 Max Kills in Single Turn 3 | 1 1 1 1 3 Gunslinging . | . . . . . Exploded 1 | . . . . 1 Melee . | . . . . . Uniques/NPCs Destroyed . | . . . . . Combat | -11 -10 -9 -8 -7 -------- Run | Yrd Mat Mat Mat Fac Hostile Shots Fired 317 | . . 100 32 185 Missed 93 | . . 32 8 53 Damage Taken 3741 | . . 796 433 2512 Core 926 | . . 152 56 718 Absorbed by Shields . | . . . . . Core Remaining (%) 87 | 100 100 62 89 . Volleys Fired 127 | 6 4 58 25 34 Largest 2 | 2 2 2 2 2 Hottest 68 | 40 40 46 46 68 Shots Fired 221 | 12 8 116 50 35 Gun 204 | 12 8 116 50 18 Cannon 17 | . . . . 17 Launcher . | . . . . . Special . | . . . . . Kinetic 207 | 12 8 116 50 21 Thermal 13 | . . . . 13 Explosive . | . . . . . Electromagnetic 1 | . . . . 1 Robot Hit Streak 13 | 5 6 13 5 7 Robot Miss Streak 5 | 1 1 5 3 3 Penetration Max . | . . . . . Secondary Targets 3 | . . 3 . . Max Gunslinging Chain 1 | . . 1 . . Shots Hit Robots 142 | 10 6 76 28 22 Core Hits 51 | 2 3 28 11 7 Critical Kills 1 | . . . 1 . Critical Parts Destroyed 1 | . . 1 . . Critical Strikes 2 | . . 1 1 . Destroy 2 | . . 1 1 . Melee Attacks . | . . . . . Impact . | . . . . . Slashing . | . . . . . Piercing . | . . . . . Sneak Attacks . | . . . . . Combat Hostiles . | . . . . . Follow-up Attacks . | . . . . . Damage Inflicted 2833 | 74 47 1145 393 1174 Guns 1772 | 74 47 1138 384 129 Cannons 234 | . . . . 234 Explosions 784 | . . . . 784 Melee . | . . . . . Ramming 43 | . . 7 9 27 Kinetic 1837 | 74 47 1138 384 194 Thermal 338 | . . . . 338 Explosive 596 | . . . . 596 Electromagnetic 19 | . . . . 19 Impact . | . . . . . Slashing . | . . . . . Piercing . | . . . . . Highest Corruption . | . . . . . Average Corruption . | . . . . . Corruption Purged . | . . . . . Corruption Blocked . | . . . . . Overload Shots . | . . . . . Overflow Damage 96 | . . . . 96 Projectiles 12 | . . . . 12 Explosions 84 | . . . . 84 Melee . | . . . . . Knockbacks . | . . . . . Impact . | . . . . . Kinetic . | . . . . . Secondary . | . . . . . Self-Inflicted Damage 163 | . . . . 163 Shots 2 | . . . . 2 Rammed . | . . . . . Targets Rammed 7 | . . 1 3 3 Kicked 7 | . . 1 3 3 Crushed . | . . . . . Highest Temperature 185 | . . 16 92 185 Average Temperature 34 | . . 5 40 60 Received Heat Transfer 1230 | . . 309 135 786 Siege Activations . | . . . . . Robots Corrupted . | . . . . . Combat Hostiles . | . . . . . Parts Fried . | . . . . . Impact Corruptions . | . . . . . Robots Melted . | . . . . . Combat Hostiles . | . . . . . Parts Melted . | . . . . . Heat Transferred 199 | . . . . 199 Parts Sabotaged . | . . . . . Parts Stolen . | . . . . . Parts Stripped . | . . . . . Power Chain Reactions . | . . . . . Alert | -11 -10 -9 -8 -7 ------- Run | Yrd Mat Mat Mat Fac Peak Influence 421 | 5 8 421 290 397 Initial 177 | . 3 3 177 40 Average 129 | 1 6 202 222 65 Maximum Alert Level 2 | . . 2 1 1 Low Security (%) 61 | 100 100 37 31 83 Level 1 34 | . . 50 68 16 Level 2 3 | . . 11 . . Level 3 . | . . . . . Level 4 . | . . . . . Level 5 . | . . . . . High Security . | . . . . . Max Security . | . . . . . Squads Dispatched 13 | . 1 3 3 6 Investigation 1 | . . 1 . . Extermination 2 | . . . . 2 Reinforcement 10 | . 1 2 3 4 Assault . | . . . . . Garrison . | . . . . . Intercept . | . . . . . Searches Triggered . | . . . . . Construction Impeded . | . . . . . Haulers Reinforced 1 | . . . . 1 Active Scanning Responses . | . . . . . Cargo Convoy Interrupts . | . . . . . Stealth | -11 -10 -9 -8 -7 --------- Run | Yrd Mat Mat Mat Fac Distress Signals 4 | . . 2 1 1 Communications Jammed . | . . . . . Distress Signals . | . . . . . Times Spotted 54 | . 1 27 20 6 Peak Tracking Total 6 | . 1 6 5 3 Tactical Retreats 6 | . . 5 1 . Traps | -11 -10 -9 -8 -7 ------- Run | Yrd Mat Mat Mat Fac Traps Triggered 2 | . 1 1 . . Indirectly . | . . . . . Trap Hack Attempts . | . . . . . Triggered . | . . . . . Disarmed . | . . . . . Reprogrammed . | . . . . . Reused . | . . . . . Traps Extracted . | . . . . . Installed . | . . . . . Triggered . | . . . . . Machines | -11 -10 -9 -8 -7 ---------- Run | Yrd Mat Mat Mat Fac Machines Disabled 21 | . . . . 21 Max in Single Turn 21 | . . . . 21 Machines Repaired . | . . . . . Machines Dismantled . | . . . . . Machines Sabotaged . | . . . . . Overloaded Fab Kills . | . . . . . Hacking | -11 -10 -9 -8 -7 --------- Run | Yrd Mat Mat Mat Fac Machines Accessed 8 | . 2 3 3 . Terminals 7 | . 2 2 3 . Fabricators . | . . . . . Repair Stations . | . . . . . Recycling Units . | . . . . . Scanalyzers 1 | . . 1 . . Garrison Access . | . . . . . Total Hacks 12 | . 2 5 5 . Successful 4 | . . 2 2 . Failed 8 | . 2 3 3 . Catastrophic 4 | . 1 2 1 . Database Lockouts . | . . . . . Manual 9 | . 2 3 4 . Terminals 10 | . 2 3 5 . Fabricators . | . . . . . Repair Stations . | . . . . . Recycling Units . | . . . . . Scanalyzers 2 | . . 2 . . Garrison Access . | . . . . . Terminal Hacks 2 | . . . 2 . Branch Access Points 2 | . . . 2 . Fabricator Hacks . | . . . . . Repair Station Hacks . | . . . . . Recycling Unit Hacks . | . . . . . Scanalyzer 2 | . . 2 . . Insert Component 1 | . . 1 . . Analyze 1 | . . 1 . . Garrison Access Hacks . | . . . . . Unauthorized Hacks . | . . . . . Terminals . | . . . . . Fabricators . | . . . . . Repair Stations . | . . . . . Recycling Units . | . . . . . Scanalyzers . | . . . . . Garrison Access . | . . . . . Data Cores Recovered . | . . . . . Used . | . . . . . Hacking Detections 3 | . . 1 2 . Full Trace Events 1 | . . 1 . . Feedback Events . | . . . . . Feedback Blocked . | . . . . . Robot Schematics Acquired . | . . . . . Robots Built . | . . . . . Authchips . | . . . . . Time . | . . . . . Total Robot Build Rating . | . . . . . Part Schematics Acquired 1 | . . 1 . . Parts Built . | . . . . . Authchips . | . . . . . Time . | . . . . . Total Part Build Rating . | . . . . . Parts Repaired . | . . . . . Time . | . . . . . Parts Recycled . | . . . . . Recycled Matter . | . . . . . Retrieved Matter . | . . . . . Retrieved Components . | . . . . . Parts Scanalyzed 1 | . . 1 . . Part Schematics Acquired 1 | . . 1 . . Parts Damaged . | . . . . . Bothacking | -11 -10 -9 -8 -7 ------------ Run | Yrd Mat Mat Mat Fac Used RIF Installer . | . . . . . Robots Hacked . | . . . . . Non-combat . | . . . . . Combat . | . . . . . Robot Hacks Applied . | . . . . . Relay Couplers Released . | . . . . . Fabnet Peak Effective % . | . . . . . Robots Rewired . | . . . . . Allies Hacked . | . . . . . Hacks Repelled . | . . . . . Allies | -11 -10 -9 -8 -7 -------- Run | Yrd Mat Mat Mat Fac Total Allies . | . . . . . Largest Group . | . . . . . Highest-Rated Group . | . . . . . Highest-Rated Ally . | . . . . . Total Orders . | . . . . . Ally Attacks . | . . . . . Total Damage . | . . . . . Kills . | . . . . . Allies Corrupted . | . . . . . Allies Melted . | . . . . . Intel | -11 -10 -9 -8 -7 ------- Run | Yrd Mat Mat Mat Fac Robot Analysis Total . | . . . . . Derelict Logs Recovered . | . . . . . Drone Launches . | . . . . . Drone Recoveries . | . . . . . Exploration | -11 -10 -9 -8 -7 ------------- Run | Yrd Mat Mat Mat Fac Turns Passed 2695 | 79 140 772 509 1195 Spaces Moved 1659 | 49 102 468 322 718 Core 9 | 9 . . . . Treads . | . . . . . Legs 1649 | 40 102 468 322 717 Wheels . | . . . . . Hover . | . . . . . Flight 1 | . . . . 1 Fastest Speed 50 | 50 120 120 120 120 Average Speed 123 | 107 120 120 121 128 Slowest Speed 1240 | 120 120 120 122 1240 Overloaded Moves . | . . . . . Propulsion Burnouts . | . . . . . Robots Hopped . | . . . . . Cave-ins Triggered . | . . . . . Exploration Rate (%) 20 | 4 23 37 23 16 Regions Visited 4 Branch Regions . Pre-discovered Areas . | . . . . . Known Exits Taken 2 | . . 1 1 . Unknown Exits Taken 2 | 1 1 . . . Scrap Searched . | . . . . . Spaces Dug . | . . . . . Terrain Destroyed 41 | . . . . 41 Melee . | . . . . . Projectile 2 | . . . . 2 AOE 39 | . . . . 39 Terrain Rammed . | . . . . . Walls Destroyed . | . . . . . Machines Disabled . | . . . . . Actions | -11 -10 -9 -8 -7 --------- Run | Yrd Mat Mat Mat Fac Total 2122 | 63 111 586 395 967 Wait 238 | . . 25 24 189 Move 1655 | 48 101 467 321 718 Hop . | . . . . . Pick Up 8 | 1 1 5 . 1 Fast Attach 28 | 7 4 6 5 6 Attach 10 | . . . 1 9 Detach 5 | 1 1 2 . 1 Swap 20 | . . 9 8 3 Drop 24 | . . 13 8 3 Fire 127 | 6 4 58 25 34 Melee . | . . . . . Ram . | . . . . . Kick 7 | . . 1 3 3 Crush . | . . . . . Escape Stasis . | . . . . . Rewire . | . . . . . Trap . | . . . . . Miscellaneous . | . . . . . Route ------- -11/Scrapyard -10/Materials -9/Materials -8/Materials -7/Factory (discovered 1 exit: *Fac) History --------- Turn | Location | Event 8 | -11/Scrapyard | Discovered new exit (range 15) 80 | -11/Scrapyard | Entered Materials 208 | -10/Materials | Discovered new exit (range 10) 220 | -10/Materials | Entered another Materials area 220 | -9/Materials | Evolved 2 slots: Propulsion x2 303 | -9/Materials | Build established: Mutant 951 | -9/Materials | Build established: Scavenger-Mutant 958 | -9/Materials | Discovered new exit (range 8) 970 | -9/Materials | Identified exit to Materials 992 | -9/Materials | Entered another Materials area 992 | -8/Materials | Evolved 2 slots: Power x1, Utility x1 1238 | -8/Materials | Met 7R-MNS 1490 | -8/Materials | Discovered new exit (range 7) 1500 | -8/Materials | Identified exit to Factory 1501 | -8/Materials | Entered Factory 1501 | -7/Factory | Evolved 2 slots: Utility x2 1502 | -7/Factory | Caught up to 7R-MNS 1814 | -7/Factory | Discovered new exit (range 10) 1847 | -7/Factory | Identified exit to Factory 2504 | -7/Factory | Attacked by 7R-MNS 2583 | -7/Factory | Core integrity fell below 50% 2606 | -7/Factory | Lost 10 parts (1p4n5w) 2670 | -7/Factory | Core integrity fell below 20% 2696 | -7/Factory | Destroyed by 7R-MNS with Wave Gun Last Messages --------------- Acquired Xenon Bombardment Thruster. Acquired Mic. Nuclear Core. Acquired 50 matter. Acquired Shock Rifle. Acquired Gauss Rifle. K-01 Serf cleans the Subcomponent Replicator. Subcomponent Replicator disabled. K-01 Serf collects debris. Shock Rifle destroyed. Kicked K-01 Serf out of the way. Aluminum Leg destroyed. Gauss Rifle destroyed. Kicked K-01 Serf out of the way. Acquired Prototype Energy Cannon. Identified Cld. Particle Cannon. Aluminum Leg destroyed. K-01 Serf cleans the Subcomponent Replicator. Rnf. Deuterium Engine destroyed. Cld. Particle Cannon destroyed. Map ----- +----------------------------------------------------+ | ?????????????????????????????????????????????????? | | ?????????????????????????????????????????????????? | | ?????????????????????????????????????????????????? | | ?????????????????????????????????????????????????? | | ?????????????????????????????????????????????????? | | ?????????????????????????????????????????????????? | | ?????????????????????????????????????????????????? | | ?????????????????????????????????????????????????? | | ?????????????????????????????????????????????????? | | ?????????????????????????????????????????????????? | | ?????????????????????????????????????????????????? | | ?????????????????????????????????????????????????? | | ?????????????????????????????????????????????????? | | ?????????????????????????????????????????????????? | | ???????????????????????#####+#####???????????????? | | ??????????????????????? #???????????????? | | ????????????????????#??? #???????????????? | | ????????????????????# ? #???????????????? | | ????????????????????# "" "" #???????????????? | | ????????????????????# "" "" #???????????????? | | ????????????????????# """ """ #???????????????? | | ????????????????????# """ """ #???????????????? | | ????????????????????# """ """ #???????????????? | | ????????????????????# #???????????????? | | ????????????????????# #???????????????? | | ????????????????????# @ k #???????????????? | | ????????????????????# g #???????????????? | | ????????????????????##########/###???????????????? | | ?????????????????????????????# #?????????????????? | | ?????????????????????????????# #?????????????????? | | ?????????????????????????????# #?????????????????? | | ?????????????????????????????# #?????????????????? | | ????????????##############???# #?????????????????? | | ????????????# ##### #?????????????????? | | ????????????# / #?????????????????? | | ????????????# ##### #?????????????????? | | ????????????# #???# #?????????????????? | | ????????????# #??? ?????????????????? | | ????????????# "" " + T #????????????????? | | ????????????# "" " ###? #?????????????##+# | | ????????????# """ """ #???# #??????????????# | | ????????????# """ """ #???# #??????????????# | | ????????????# """ """ #???# #??????????????# | | ????????????# +???? ???????????????# | | ????????????# #???? ???????????????# | | ????????????#######"######???? ?????????????### | | ??????????????# ! #????? ??????????? | | ??????????????# #????? ?????????????### | | ??????????????# #?????????????????????#### | | ???????????#### ! #????????????#+########### | +----------------------------------------------------+ Best States ------------- Heat Dissipation 38 Energy Generation 29 Energy Capacity 340 Matter Stores 300 Matter Capacity 300 Sight Range 16 Terrain Scan Density 10 Evasion (%) 55 Targeting Accuracy 5 Core Analysis 9 Item Schematics ----------------- Huge Storage Unit | -9/Materials | Scanalyzed Robot Schematics ------------------ None Fabricated ------------ Nothing Alien Tech Used ----------------- None Achievements -------------- None Challenges ------------ None Game ------ Seed StructuralCoolingAmplifier Manual? 0 Play Time 00:26:03 Cumulative 10.5 hours Start 2024.04.06 @ 18:43:39 End 2024.04.06 @ 22:05:43 Sessions 3 Manual Loads 0 Difficulty Rogue Special Mode None Game No. 23 Rogue 23 Adventurer 0 Explorer 0 Win Type - Total 0 Types 0/0/0/0/0/0/0/0/0 Lore% 17 Gallery% 20 Achievement% 15 Wizard Run 0 Options --------- Layout 1 ASCII 0 Keyboard 0 Movement Arrows Keybinds 0 Fullscreen 1 Font 24/Smallcaps Map View 50x35 Zoom Use 0% Tactical HUD 0 Map Filters NONE Filters NONE Steam 1 RUN: 19f0be42-a248-4faa-adee-122b02adf961